Cogmind - Beta 15 @@@ ROGUE MODE // 2025.09.14 @ 15:21:25 Player: Petvaria Result: Destroyed by EJ-KKU(j) with Overtuned Pulse Rifle Performance ------------- Evolutions (0) 0 Regions Visited (3) 600 Robots Destroyed (28) 140 Value Destroyed (602) 602 Prototype IDs (1) 20 Alien Tech Used (0) 0 Bonus (777) 777 TOTAL SCORE: 2139 Bonus ------- Registered with UFD 300 Met Optimus in HQ 500 Friendly Fire -23 Cogmind --------- Core Integrity 0/250 Matter 300/300 Energy 98/100 System Corruption 0% Temperature Warm (115) Movement Core (50) Location -7/Scraptown Parts ------- > --- POWER (1) -------- (None) > --- PROPULSION (2) --- (None) > --- UTILITY (2) ------ (None) > --- WEAPON (2) ------- (None) > --- INVENTORY (5) ---- Riot Gun Medium Laser Light Cannon CPS Tube (1) Botcube Peak State ------------ > --- POWER ------------ Light Ion Engine > --- PROPULSION ------- Aluminum Leg Compact Wheel > --- UTILITY ---------- Scrap Shield > --- WEAPON ----------- Barrage Gun CPS Tube > --- INVENTORY -------- Riot Gun Medium Laser Subdweller Laser Light Cannon Botcube [Rating: 14] Favorites ----------- Power Light Ion Engine Engine Light Ion Engine Propulsion Aluminum Leg Treads Light Treads Leg Aluminum Leg Wheel Compact Wheel Utility Scrap Shield Storage Medium Storage Unit Protection Scrap Shield Weapon Barrage Gun Energy Gun Medium Laser Ballistic Gun Barrage Gun Ballistic Cannon Light Cannon Launcher Grenade Launcher Special Weapon CPS Tube Build | -11 -10 -10 -7 ------- Run | Yrd Mat Sub Scr Slots Evolved . | . . . . Power . | . . . . Propulsion . | . . . . Utility . | . . . . Weapon . | . . . . Parts Attached 19 | 6 4 7 2 Power 2 | 1 . 1 . Engine 2 | 1 . 1 . Core . | . . . . Reactor . | . . . . Propulsion 6 | 2 1 2 1 Treads 2 | 2 . . . Leg 3 | . 1 2 . Wheel 1 | . . . 1 Hover . | . . . . Flight . | . . . . Utility 3 | 1 1 1 . Device . | . . . . Storage 2 | 1 1 . . Processor . | . . . . Hackware . | . . . . Protection 1 | . . 1 . Artifact . | . . . . Weapon 8 | 2 2 3 1 Energy Gun 3 | 1 1 1 . Energy Cannon . | . . . . Ballistic Gun 2 | 1 . 1 . Ballistic Cannon 1 | . . 1 . Launcher 1 | . 1 . . Special Weapon 1 | . . . 1 Impact Weapon . | . . . . Slashing Weapon . | . . . . Piercing Weapon . | . . . . Special Melee Weapon . | . . . . Unidentified Prototypes . | . . . . Parts Lost 7 | . 1 1 5 Power 1 | . . . 1 Propulsion 3 | . 1 . 2 Utility 1 | . . . 1 Weapon 2 | . . 1 1 Highest Loss Streak 5 | . 1 1 5 To Critical Strikes . | . . . . Average Backups 5 | 3 8 5 4 Power . | . 1 . . Propulsion 2 | 2 4 2 . Utility . | . . . . Weapon 3 | . 3 3 3 Tool/Special . | . . . . Unused Backups 5 | . . 3 2 Power . | . . . . Propulsion 1 | . . 1 . Utility 1 | . . 1 . Weapon 2 | . . 1 1 Tool/Special 1 | . . . 1 Average Slot Usage (%) 84 | . 85 84 84 Engine 13 | . 14 14 13 Treads 4 | . 18 1 . Leg 17 | . 9 26 14 Wheel 6 | . . . 13 Storage 3 | . 14 2 . Protection 10 | . . 12 13 Energy Gun 12 | . 12 13 12 Ballistic Gun 13 | . 13 14 14 Peak Build Rating 14 | 6 7 12 14 Average Rating 10 | 4 6 10 12 On Entrance 6 | . 6 7 12 Naked Turns 3 | . . . 3 Heaviest Build 28 | 14 24 28 28 Greatest Support 40 | 40 40 20 20 Greatest Overweight (x) 3 | . 1 1 3 Average Overweight (x) . | . . . . Largest Inventory Capacity 10 | 8 10 10 5 Average Capacity 6 | 7 9 5 5 Most Carried 10 | 6 10 10 5 Average Carried 5 | 3 8 5 4 Final Capacity 10 | 8 10 5 5 Final Carried 10 | 6 10 5 5 Class Distribution -------------------- 100% | Mutant Dominant Class ---------------- Mutant | -10/Materials Mutant | -10/Subcaves Mutant | -7/Scraptown Resources | -11 -10 -10 -7 ----------- Run | Yrd Mat Sub Scr Matter Collected 944 | 236 446 177 85 Remotely . | . . . . Salvage Created 886 | . 648 238 . Parts 63 | . 43 20 . Haulers Intercepted 2 | . 2 . . Recyclers Shooed 2 | . 2 . . Parts Field Recycled . | . . . . Retrieved Matter . | . . . . Parts Self-Destructed 17 | . . 17 . Prevented . | . . . . Kills | -11 -10 -10 -7 ------- Run | Yrd Mat Sub Scr Combat Hostiles Destroyed 17 | . 10 7 . Guns 16 | . 9 7 . AOE 1 | . 1 . . Classes Destroyed 9 | . 7 2 . Worker 3 | . 3 . . Hauler 2 | . 2 . . Recycler 2 | . 2 . . Operator 1 | . 1 . . Watcher 3 | . 3 . . Swarmer 6 | . 3 3 . Grunt 7 | . 7 . . Sentry 1 | . . 1 . Subdweller 3 | . . 3 . Best Kill Streak 3 | . 3 3 . Combat Bots Only 3 | . 3 3 . Max Kills in Single Turn 2 | . 2 2 . Gunslinging 1 | . 1 1 . Exploded 1 | . 1 . . Melee . | . . . . Uniques/NPCs Destroyed . | . . . . Combat | -11 -10 -10 -7 -------- Run | Yrd Mat Sub Scr Hostile Shots Fired 132 | . 51 31 50 Missed 38 | . 15 10 13 Hits 94 | . 36 21 37 Melee 1 | . . . 1 Projectile 93 | . 36 21 36 Critical Strikes 4 | . 1 . 3 Damage Taken 1606 | . 459 399 748 Core 259 | . 52 37 170 Absorbed by Shields . | . . . . Core Remaining (%) 100 | 100 . . . Volleys Fired 106 | . 70 33 3 Largest 2 | . 2 2 2 Hottest 88 | . 70 78 88 Shots Fired 169 | . 114 50 5 Gun 130 | . 91 35 4 Cannon 15 | . . 15 . Launcher 23 | . 23 . . Special 1 | . . . 1 Kinetic 80 | . 45 33 2 Thermal 65 | . 46 17 2 Explosive 23 | . 23 . . Electromagnetic . | . . . . Robot Hit Streak 15 | . 11 15 6 Robot Miss Streak 6 | . 4 6 2 Penetration Max . | . . . . Secondary Targets 2 | . 1 1 . Max Gunslinging Chain 1 | . 1 1 . Shots Hit Robots 82 | . 57 22 3 Core Hits 50 | . 38 11 1 Critical Kills . | . . . . Critical Parts Destroyed . | . . . . Critical Strikes 3 | . 3 . . Burn 3 | . 3 . . Melee Attacks . | . . . . Impact . | . . . . Slashing . | . . . . Piercing . | . . . . Sneak Attacks . | . . . . Combat Hostiles . | . . . . Follow-up Attacks . | . . . . Damage Inflicted 1376 | . 998 320 58 Guns 1106 | . 728 320 58 Cannons . | . . . . Explosions 270 | . 270 . . Melee . | . . . . Ramming . | . . . . Kinetic 523 | . 329 181 13 Thermal 583 | . 399 139 45 Explosive 270 | . 270 . . Electromagnetic . | . . . . Impact . | . . . . Slashing . | . . . . Piercing . | . . . . Highest Corruption . | . . . . Average Corruption . | . . . . Corruption Purged . | . . . . Corruption Blocked . | . . . . Overload Shots . | . . . . Overflow Damage . | . . . . Projectiles . | . . . . Explosions . | . . . . Melee . | . . . . Knockbacks . | . . . . Impact . | . . . . Kinetic . | . . . . Secondary . | . . . . Self-Inflicted Damage 44 | . 44 . . Shots 2 | . 2 . . Rammed . | . . . . Targets Rammed . | . . . . Kicked . | . . . . Crushed . | . . . . Highest Temperature 171 | . 162 5 171 Average Temperature 38 | . 33 4 102 Received Heat Transfer 690 | . 201 54 435 Siege Activations . | . . . . Martial Activations . | . . . . Shielding Activations . | . . . . Robots Disrupted . | . . . . Combat Hostiles . | . . . . Robots Corrupted . | . . . . Combat Hostiles . | . . . . Parts Fried . | . . . . Impact Corruptions . | . . . . Robots Melted . | . . . . Combat Hostiles . | . . . . Parts Melted . | . . . . Heat Transferred 1843 | . 1406 407 30 Parts Sabotaged . | . . . . Parts Stolen . | . . . . Parts Stripped . | . . . . Power Chain Reactions . | . . . . Alert | -11 -10 -10 -7 ------- Run | Yrd Mat Sub Scr Maximum Alert Level . | . . . . Low Security (%) 100 | 100 100 . . Level 1 . | . . . . Level 2 . | . . . . Level 3 . | . . . . Level 4 . | . . . . Level 5 . | . . . . High Security . | . . . . Max Security . | . . . . Peak Influence 126 | . 126 . . Initial . | . . . . Average 53 | . 58 . . Influence Increases 526 | . 436 90 . Destroy 0b10 Robot/C 280 | . 200 80 . Destroy 0b10 Robot/NC 55 | . 55 . . Destroy Leader 50 | . 40 10 . Disable Machine 45 | . 45 . . Destroy Structure 81 | . 81 . . Lose Combat Pursuer 15 | . 15 . . Influence Decreases 526 | . 418 108 . Entered New Map 10 | . . 10 . Time Decay 506 | . 408 98 . Lost Part 10 | . 10 . . Squads Dispatched . | . . . . Investigation . | . . . . Extermination . | . . . . Reinforcement . | . . . . Assault . | . . . . Garrison . | . . . . Intercept . | . . . . Searches Triggered . | . . . . Construction Impeded . | . . . . Haulers Reinforced . | . . . . Active Scanning Responses . | . . . . Cargo Convoy Interrupts . | . . . . Stealth | -11 -10 -10 -7 --------- Run | Yrd Mat Sub Scr Distress Signals 4 | . 4 . . Communications Jammed . | . . . . Distress Signals . | . . . . Times Spotted 33 | . 14 7 12 Peak Tracking Total 8 | . 4 3 8 Tactical Retreats 1 | . 1 . . Traps | -11 -10 -10 -7 ------- Run | Yrd Mat Sub Scr Traps Triggered 1 | . . 1 . Indirectly . | . . . . Trap Hack Attempts . | . . . . Triggered . | . . . . Disarmed . | . . . . Reprogrammed . | . . . . Reused . | . . . . Traps Extracted . | . . . . Installed . | . . . . Triggered . | . . . . Machines | -11 -10 -10 -7 ---------- Run | Yrd Mat Sub Scr Machines Disabled 3 | . 3 . . Max in Single Turn 1 | . 1 . . Machines Repaired . | . . . . Machines Dismantled . | . . . . Machines Sabotaged . | . . . . Overloaded Fab Kills . | . . . . Hacking | -11 -10 -10 -7 --------- Run | Yrd Mat Sub Scr Machines Accessed 2 | . . . 2 Terminals . | . . . . Fabricators . | . . . . Repair Stations . | . . . . Recycling Units . | . . . . Scanalyzers . | . . . . Garrison Access . | . . . . Total Hacks 21 | . . . 21 Successful 21 | . . . 21 Failed . | . . . . Catastrophic . | . . . . Database Lockouts . | . . . . Manual . | . . . . Terminals . | . . . . Fabricators . | . . . . Repair Stations . | . . . . Recycling Units . | . . . . Scanalyzers . | . . . . Garrison Access . | . . . . Terminal Hacks 21 | . . . 21 Record 16 | . . . 16 Robot Analysis 5 | . . . 5 Fabricator Hacks . | . . . . Repair Station Hacks . | . . . . Recycling Unit Hacks . | . . . . Scanalyzer . | . . . . Garrison Access Hacks . | . . . . Unauthorized Hacks . | . . . . Terminals . | . . . . Fabricators . | . . . . Repair Stations . | . . . . Recycling Units . | . . . . Scanalyzers . | . . . . Garrison Access . | . . . . Data Cores Recovered 1 | . 1 . . Used . | . . . . Hacking Detections . | . . . . Full Trace Events . | . . . . Feedback Events . | . . . . Feedback Blocked . | . . . . Robot Schematics Acquired . | . . . . Robots Built . | . . . . Authchips . | . . . . Time . | . . . . Total Robot Build Rating . | . . . . Part Schematics Acquired . | . . . . Parts Built . | . . . . Authchips . | . . . . Time . | . . . . Total Part Build Rating . | . . . . Parts Repaired . | . . . . Time . | . . . . Parts Recycled . | . . . . Recycled Matter . | . . . . Retrieved Matter . | . . . . Retrieved Components . | . . . . Parts Scanalyzed . | . . . . Part Schematics Acquired . | . . . . Parts Damaged . | . . . . Bothacking | -11 -10 -10 -7 ------------ Run | Yrd Mat Sub Scr Used RIF Installer . | . . . . Robots Hacked . | . . . . Non-combat . | . . . . Combat . | . . . . Robot Hacks Applied . | . . . . Relay Couplers Released . | . . . . Fabnet Peak Effective % . | . . . . Robots Rewired . | . . . . Allies Hacked . | . . . . Hacks Repelled . | . . . . Allies | -11 -10 -10 -7 -------- Run | Yrd Mat Sub Scr Total Allies . | . . . . Largest Group . | . . . . Highest-Rated Group . | . . . . Highest-Rated Ally . | . . . . Total Orders . | . . . . Ally Attacks . | . . . . Total Damage . | . . . . Kills . | . . . . Allies Corrupted . | . . . . Allies Melted 4 | . . . 4 Intel | -11 -10 -10 -7 ------- Run | Yrd Mat Sub Scr Active Infowar (turns) . | . . . . Robot Analysis Total 5 | . . . 5 Derelict Logs Recovered 2 | . . . 2 Drone Launches . | . . . . Drone Recoveries . | . . . . Exploration | -11 -10 -10 -7 ------------- Run | Yrd Mat Sub Scr Turns Passed 5454 | 91 1155 1805 2403 Spaces Moved 3128 | 53 565 672 1838 Core 25 | 10 . . 15 Treads 682 | 43 565 74 . Legs 608 | . . 598 10 Wheels 1813 | . . . 1813 Hover . | . . . . Flight . | . . . . Fastest Speed 50 | 50 160 160 50 Average Speed 139 | 139 160 186 115 Slowest Speed 240 | 160 240 190 200 Overloaded Moves . | . . . . Propulsion Burnouts . | . . . . Robots Hopped . | . . . . Potential Cave-ins . | . . . . Cave-ins Triggered . | . . . . Exploration Rate (%) 53 | 4 93 23 93 Regions Visited 3 Branch Regions 2 Pre-discovered Areas 4 | . . . 4 Known Exits Taken . | . . . . Unknown Exits Taken 3 | 1 1 1 . Scrap Searched 5 | . . . 5 Spaces Dug . | . . . . Terrain Destroyed 83 | . 83 . . Melee . | . . . . Projectile . | . . . . AOE 83 | . 83 . . Terrain Rammed . | . . . . Walls Destroyed . | . . . . Machines Disabled . | . . . . Actions | -11 -10 -10 -7 --------- Run | Yrd Mat Sub Scr Total 4065 | 70 698 1174 2123 Wait 768 | . 50 446 272 Move 3125 | 52 564 671 1838 Hop . | . . . . Pick Up 22 | 12 5 2 3 Fast Attach 2 | . 1 1 . Attach 8 | 6 1 1 . Detach . | . . . . Swap 16 | . 6 7 3 Drop 13 | . 1 8 4 Fire 106 | . 70 33 3 Melee . | . . . . Ram . | . . . . Kick . | . . . . Crush . | . . . . Escape Stasis . | . . . . Rewire . | . . . . Trap . | . . . . Miscellaneous 5 | . . 5 . Route ------- -11/Scrapyard -10/Materials (discovered 5 exits: [*Mat x2] / [*Min x2] / [*Sub]) -10/Subcaves -7/Scraptown (discovered 2 exits: [*Fac x2]) History --------- Turn | Location | Event 3 | -11/Scrapyard | Discovered new exit (range 16) 92 | -11/Scrapyard | Entered Materials 305 | -10/Materials | Build established: Mutant 604 | -10/Materials | Discovered new exit (range 14) 679 | -10/Materials | Discovered new exit (range 12) 827 | -10/Materials | Discovered new exit (range 15) 890 | -10/Materials | Discovered new exit (range 14) 1233 | -10/Materials | Discovered new exit (range 8) 1247 | -10/Materials | Entered Subcaves 1248 | -10/Subcaves | Approached by a straggling Scientist 1319 | -10/Subcaves | A swath of the cavern ceiling suddenly collapsed 1374 | -10/Subcaves | Shifting Twisted Machinery released Humpback 1376 | -10/Subcaves | Shifting Twisted Machinery released Barrage Gun 1448 | -10/Subcaves | Ambushed by Subdwellers from Twisted Machinery 3042 | -10/Subcaves | Scientist uncovered a shortcut to Scraptown 3052 | -10/Subcaves | Entered Scraptown 3126 | -7/Scraptown | Heard Great Nut preacher, LISTEN AND RECITE! 3366 | -7/Scraptown | Visited TADAMA 3444 | -7/Scraptown | Visited Cave Peace 3466 | -7/Scraptown | Visited Spacefarers 3780 | -7/Scraptown | Discovered new exit (range 11) 3814 | -7/Scraptown | Scanned Subdweller tech in exchange for log data 3816 | -7/Scraptown | Learned location of Zion (-7) 3817 | -7/Scraptown | Learned location of 1 exit from Factory 3856 | -7/Scraptown | Visited CR-KLE's Repair Center 3893 | -7/Scraptown | Visited Red Mages 3965 | -7/Scraptown | Visited The Evicted 3984 | -7/Scraptown | Visited Comm Corps 4172 | -7/Scraptown | Visited UFD Registry 4172 | -7/Scraptown | Registered with UFD as "Wrenchflow" 4198 | -7/Scraptown | Visited Science Testing Area 4215 | -7/Scraptown | Visited LU-1G1's Boring Crew 4267 | -7/Scraptown | Visited Scrapoid Pod Storage 4416 | -7/Scraptown | Visited Botcube Research 4425 | -7/Scraptown | Found Botcube 4446 | -7/Scraptown | Visited Analyses Database 4483 | -7/Scraptown | Visited Derelict Rescue Squad 4575 | -7/Scraptown | Discovered new exit (range 5) 4622 | -7/Scraptown | Visited Scrapoid Research Area 4654 | -7/Scraptown | Visited Curators Association 4698 | -7/Scraptown | Visited Cartography Club 4800 | -7/Scraptown | Learned location of Armory (-3) 4800 | -7/Scraptown | Learned location of Quarantine (-3) 4800 | -7/Scraptown | Learned 8 Factory zone layouts 4800 | -7/Scraptown | Learned 16 Factory zone layouts 4800 | -7/Scraptown | Learned 24 Factory zone layouts 4800 | -7/Scraptown | Learned 8 Research zone layouts 4800 | -7/Scraptown | Learned 16 Research zone layouts 4800 | -7/Scraptown | Learned 4 Recycling zone layouts 4800 | -7/Scraptown | Learned 12 Proximity Caves zone layouts 4800 | -7/Scraptown | Learned 4 Hub_04(d) zone layouts 4800 | -7/Scraptown | Learned location of 2 exits from Factory 4800 | -7/Scraptown | Learned location of 1 exit from Research 4982 | -7/Scraptown | Met Optimus 4982 | -7/Scraptown | Accepted into 0bPrime 5382 | -7/Scraptown | Civil war broke out across Scraptown 5449 | -7/Scraptown | Core integrity fell below 50% 5453 | -7/Scraptown | Core integrity fell below 20% 5455 | -7/Scraptown | Destroyed by EJ-KKU(j) with Overtuned Pulse Rifle Last Messages --------------- Aluminum Leg destroyed. KF-JNK(j) heat damages Lgt. Deuterium Engine. 6S-N74(h) heat spikes uncontrollably. EJ-KKU(j) heat damages Ovr. Pulse Rifle. R9-DNQ(E): "We are one!" Bolt penetrates R9-DNQ(E). Dropped Sub. Laser. 6S-N74(h) critical meltdown. 84-KRG(j) suffers critical hit (Burn). 84-KRG(j) overheating. Slug penetrates FV-JD3(x). FV-JD3(x) suffers critical hit (Destroy). FV-JD3(x) destroyed. KF-JNK(j) destroyed. Bolt penetrates KI-CN9(x). Bolt penetrates R9-DNQ(E). Barrage Gun destroyed. 84-KRG(j) heat spikes uncontrollably. KI-CN9(x) destroyed. Bolt penetrates EJ-KKU(j). Map ----- +----------------------------------------------------+ | | | | | | | | | | | | | | | | | | | | | | | | | ?????????????????????????????????????????????????? | | ########???????????????#########?????????????????? | | """""""#???????????????#"!!%[=!##????????????????? | | " "#???????????????#"%<%=!!!#?###############? | | """ "#???#########???#"!=%==[###"""""""""#"""""? | | " """ "#???#"""""""#?????#=[!*%!##" "#" ? | | " """ "#???#"" ""#?????###!=[###" """ | | " "#???#"" ""#???????#=%!#?#" !* "#" "" | | """ """###?#""" ""#???????#[j%###" " "%[ #" " | | #?#"" ""#??????##j=!=##" !!=* #" | | ###""" """######## %=* ;#[""""!% #"" """ | | j = !%[ !h! !%!=! =%%! | | = =!! ! EE! != [ ! | | !% *%!%=% @ !%[ | | ######[########### j ##########" !*="# | | ###### ######????## % ##????????#" %[%"# | | #""""" """""#####?# #########?#" !""# | | #" " " #?# """"""""#?#" ["""# | | #""" ""#" " " "### ### " ""#?#" """# | | #""" "#" " " "#"" """ "#?#"""""""# | | #""" "#""""" """""#" """ " ""#?######### | | #"" "###### ######" " """"""""#?????????? | | #" "#""""" """""#" ##"""####?????##### | | #""" ""#" " " "#" "" " ###############"""" | | #### ###" " " "#" " #""""""""""""##""" | | #??# " " "#"""""" #" "##" " | | #??#####""""" """""####### #" "###+## "##"" | | ##?????###### ######?????# #" "#"" # "##" | | ############ ############ #" "# #" "##" | | #" # """#" "##" | | "" "###### "##""" | | ######################### !#" "##"" | | ##??????????????????????# = # = ##"" | | ########???????????????###!!%########## ##### ## | | """""""#????????######## !%!!= % | | " "#?????""""""" # [=*[ | | ![ "#????#""""""" # | | " [ "#????#""""""" # | +----------------------------------------------------+ Best States ------------- Heat Dissipation 25 Energy Generation 10 Energy Capacity 250 Matter Stores 300 Matter Capacity 300 Sight Range 16 Terrain Scan Density 10 Armor Coverage 800 Evasion (%) 50 Recoil Reduction 2 Item Schematics ----------------- None Robot Schematics ------------------ None Fabricated ------------ Nothing Repaired ---------- Nothing Alien Tech Used ----------------- None Achievements -------------- None Challenges ------------ None Game ------ Seed GuidanceAntimissileDriver Manual? 0 Play Time 00:26:29 Cumulative 208.3 hours Start 2025.09.14 @ 14:55:04 End 2025.09.14 @ 15:21:25 Sessions 1 Manual Loads 0 Difficulty Rogue Special Mode None Game No. 184 Rogue 184 Adventurer 0 Explorer 0 Win Type - Total 11 Types 5/0/2/2/1/0/0/0/0/1 Lore% 90 Gallery% 84 Achievement% 68 Wizard Run 0 Options --------- Layout 1 ASCII 0 Keyboard 0 Movement Numpad Keybinds 0 Fullscreen 1 Font 24/Proggy Map View 50x35 Zoom Use 0% Tactical HUD 0 Map Filters NONE Filters NONE Steam 1 RUN: fa9b6b37-8abb-4c6a-b682-af762b221026